[Event "10th Cesme Open-A 2024"]
[Site "Cesme"]
[Date "2024.06.25"]
[Round "4"]
[White "Zerey, Demhat"]
[Black "Kilic, Eray"]
[Result "1-0"]
[ECO "A48"]
[WhiteElo "2038"]
[BlackElo "2443"]
[Annotator "TA"]
[PlyCount "85"]
[EventDate "2024.06.23"]
[EventType "swiss"]
[EventCountry "TUR"]
[SourceTitle "playchess.com"]
[Source "ChessBase"]
[SourceQuality "1"]
[TimeControl "5400+30"]

{[%evp 12,85,0,4,0,6,34,29,59,41,54,41,56,54,53,50,72,68,99,97,96,80,113,87,75,74,138,104,173,139,128,134,138,131,135,124,133,132,121,134,146,139,193,184,222,191,227,200,186,160,187,198,360,338,420,417,368,187,199,199,513,511,503,462,29977,29978,29978,29979,29979,29980,29980,29981,29979,29980,29979,29980]} 1. d4 {[%emt 0:01:00]} Nf6 {[%emt 0:01:00]} 2. Bf4 {[%emt 0:00:30]} g6 {[%emt 0:00:00]} 3. Nf3 {[%emt 0:00:30]} Bg7 {[%emt 0:00:00]} 4. e3 {[%emt 0:00:00]} d6 {[%emt 0:00:00]} 5. h3 {[%emt 0:00:00]} O-O {[%emt 0:00:00]} 6. Be2 {[%emt 0:00:00]} c5 {[%emt 0:00:30]} 7. O-O {[%emt 0:02:00]} Nc6 {[%emt 0:00:30]} 8. d5 {[%emt 0:03:30]} Nb4 {[%emt 0:05:30][%cal Bc6b4,Bb4a6,Ba6c7,Bc7b5][%mdl 32]} 9. Nc3 {[%emt 0:00:30]} Bf5 {[%emt 0:01:30] White has an edge.} 10. a3 {[%emt 0:01:30]} Na6 {[%emt 0:00:30]} (10... Nxc2 $6 11. Rc1 $16) (10... Bxc2 $6 11. Qd2 $16) 11. Nd2 {[%emt 0:03:30]} Nc7 {[%emt 0:00:30]} 12. e4 {[%emt 0:00:30]} Bd7 {[%emt 0:00:30]} 13. a4 {[%emt 0:02:30]} a6 {[%emt 0:01:30]} 14. a5 {[%emt 0:07:30]} Nb5 {[%emt 0:00:30]} 15. Na4 $1 {[%emt 0:02:30]} Qxa5 {[%emt 0:16:30] [#]} 16. Nxc5 $1 {[%emt 0:00:30]} Qb6 {[%emt 0:00:00]} (16... Qc7 17. Nxd7) 17. Na4 {[%emt 0:04:30] White is more active.} Qd8 {[%emt 0:01:00]} 18. Be3 {[%emt 0:01:30] Against Nd4} Ne8 {[%emt 0:00:30]} (18... e6 $142) 19. Nc4 {[%emt 0:02:30]} f5 {[%emt 0:01:30]} (19... Nf6 $16) 20. Ncb6 {[%emt 0:04:30]} f4 {[%emt 0:07:30]} 21. Nxd7 {[%emt 0:04:30]} Qxd7 {[%emt 0:00:30]} 22. Nb6 {[%emt 0:06:30]} Qd8 {[%emt 0:00:30]} 23. Bxb5 {[%emt 0:01:30]} fxe3 {[%emt 0:00:00]} 24. Nxa8 {[%emt 0:00:30][%cal Of2e3]} exf2+ {[%emt 0:00:00]} 25. Rxf2 {[%emt 0:01:30]} Rxf2 {[%emt 0:01:30]} 26. Kxf2 {[%emt 0:00:30] Black must now prevent Bxe8.} axb5 {[%emt 0:00:30]} (26... Nf6 $16) 27. c3 $1 $18 {[%emt 0:04:30]} Be5 {[%emt 0:00:00]} 28. Qe2 {[%emt 0:04:30]} Nf6 {[%emt 0:00:00]} 29. Kg1 {[%emt 0:00:30]} b4 {[%emt 0:00:30]} 30. Qc4 {[%emt 0:01:30] Hoping for Nc7.} (30. cxb4 $6 Qc8 $16) 30... bxc3 {[%emt 0:00:30]} 31. bxc3 {[%emt 0:00:30] And now Nc7 would win.} Qf8 $2 {[%emt 0:00:00] [#]} (31... Ne8 32. Qb4 Nf6 33. Qxb7 Bxc3) 32. Nc7 $1 {[%emt 0:00:00]} Qh6 {[%emt 0:00:00]} 33. Ne6 {[%emt 0:06:00] Qc8+ would now be deadly.} Qe3+ {[%emt 0:00:30]} 34. Kf1 {[%emt 0:06:30]} (34. Kh1 $142 {Intending Qc8+ and mate.} h5 35. Qc7) 34... h5 {[%emt 0:00:30]} 35. Re1 {[%emt 0:00:30]} Qd2 $2 {[%emt 0:01:30]} (35... Qxc3 {is a better chance.} 36. Qxc3 Bxc3) 36. Qc8+ {[%emt 0:02:30]} Kh7 {[%emt 0:00:00] ( -> ...Bg3)} 37. Qf8 {[%emt 0:02:30][%csl Ge6][%cal Rf8g7]} Qd3+ {[%emt 0:00:00]} (37... Nd7 $18 38. Qxe7+ Kh6) 38. Kg1 {[%emt 0:00:00][%cal Re6g5] White mates.} Nxe4 {[%emt 0:00:30]} 39. Qxe7+ {[%emt 0:01:00]} Kh6 {[%emt 0:00:30]} 40. Qf8+ {[%emt 0:00:30]} ({Worse is} 40. Qxb7 Bh2+ 41. Kh1 Be5 $11) 40... Kh7 {[%emt 0:00:00] [#]} 41. Rxe4 $1 {[%emt 0:01:30][%cal Re6g5][%mdl 512]} Qd1+ {[%emt 0:00:00] [#]} 42. Kf2 $1 {[%emt 0:00:30][%cal Re6g5]} ({Stronger than} 42. Qf1 Bh2+ 43. Kf2 Bg3+ 44. Kg1 Bh2+ 45. Kf2 Bg3+ 46. Kg1 Bh2+ $11) 42... Qc2+ {[%emt 0:00:00]} 43. Re2 {[%emt 0:00:30] Weighted Error Value: White=0.09 (flawless) /Black=0.47.  Mistake:       	White=1     	Black=6      Inaccurate:     	---       	Black=4      OK:         	White=12    	Black=12     Best:        	White=5     	Black=2      Strong:       	White=3     	---        Brilliant:      	White=1     	---} 1-0

[Event "10th Cesme Open-A 2024"]
[Site "Cesme"]
[Date "2024.06.25"]
[Round "4"]
[White "Ceyhan, Mert"]
[Black "Bolat, Inayat"]
[Result "0-1"]
[ECO "C26"]
[WhiteElo "2018"]
[BlackElo "2232"]
[Annotator "RC"]
[PlyCount "134"]
[EventDate "2024.06.23"]
[EventType "swiss"]
[EventCountry "TUR"]
[SourceTitle "playchess.com"]
[Source "ChessBase"]
[SourceQuality "1"]
[TimeControl "5400+30"]

1. e4 {[%emt 0:01:00]} e5 {[%emt 0:01:00]} 2. Nc3 {[%emt 0:00:00]} Nf6 {[%emt 0:00:00]} 3. g3 {[%emt 0:00:00]} Bc5 {[%emt 0:00:00]} 4. Bg2 {[%emt 0:00:00]} c6 {[%emt 0:00:30]} 5. Nf3 {[%emt 0:00:00]} d5 {[%emt 0:00:00]} 6. exd5 {[%emt 0:02:30]} e4 {[%emt 0:00:00]} 7. Ng5 {[%emt 0:07:30]} Bxf2+ {[%emt 0:02:30]} 8. Kxf2 {[%emt 0:00:30]} Ng4+ {[%emt 0:00:30]} 9. Ke1 {[%emt 0:00:30]} Qxg5 {[%emt 0:00:00]} 10. d3 {[%emt 0:03:30]} e3 {[%emt 0:03:00]} 11. Qf3 {[%emt 0:03:30]} O-O {[%emt 0:04:30]} 12. h3 {[%emt 0:00:30]} Ne5 {[%emt 0:00:30]} 13. Qxe3 {[%emt 0:01:30]} Qd8 {[%emt 0:00:30]} 14. Bd2 {[%emt 0:01:30]} Re8 {[%emt 0:00:30]} 15. Kf1 {[%emt 0:05:30]} cxd5 {[%emt 0:01:30]} 16. Bxd5 {[%emt 0:01:30]} Nbc6 {[%emt 0:01:30]} 17. Kg2 {[%emt 0:05:30]} Nb4 {[%emt 0:00:30]} 18. Bb3 {[%emt 0:03:30]} Nexd3 {[%emt 0:03:30]} 19. Qg5 {[%emt 0:00:30]} Qxg5 {[%emt 0:01:30]} 20. Bxg5 {[%emt 0:00:00]} Nc5 {[%emt 0:00:30]} 21. Rhe1 {[%emt 0:06:00]} Bf5 {[%emt 0:02:30]} 22. Rxe8+ {[%emt 0:07:30]} Rxe8 {[%emt 0:00:00]} 23. Rf1 {[%emt 0:00:00]} Bg6 {[%emt 0:01:00]} 24. Rf2 {[%emt 0:01:00]} h6 {[%emt 0:00:30]} 25. Bf4 {[%emt 0:01:30]} Nxb3 {[%emt 0:03:30]} 26. cxb3 {[%emt 0:00:30]} Re1 {[%emt 0:01:30]} 27. Rf1 {[%emt 0:03:30]} Re6 {[%emt 0:02:30]} 28. Rf2 {[%emt 0:02:30]} b5 {[%emt 0:05:30]} 29. Re2 {[%emt 0:06:30]} Rxe2+ {[%emt 0:01:30]} 30. Nxe2 {[%emt 0:00:00]} Be4+ {[%emt 0:01:30]} 31. Kg1 {[%emt 0:02:00]} Nd3 {[%emt 0:04:30]} 32. Be3 {[%emt 0:01:30]} a6 {[%emt 0:01:30]} 33. Bd4 {[%emt 0:01:30]} Bf3 {[%emt 0:01:30]} 34. Nf4 {[%emt 0:01:30]} Nc1 {[%emt 0:01:30]} 35. Be3 {[%emt 0:03:30]} Nxa2 {[%emt 0:01:30]} 36. Bd2 {[%emt 0:00:00]} a5 {[%emt 0:07:30]} 37. Bxa5 {[%emt 0:03:00]} Nc1 {[%emt 0:00:30]} 38. b4 {[%emt 0:00:30]} g5 {[%emt 0:00:30]} 39. Kf2 {[%emt 0:00:30]} gxf4 {[%emt 0:02:30]} 40. Kxf3 {[%emt 0:00:30]} fxg3 {[%emt 0:00:30]} 41. Kxg3 {[%emt 0:00:30]} Nd3 {[%emt 0:00:00]} 42. b3 {[%emt 0:00:30]} f5 {[%emt 0:00:00]} 43. Kf3 {[%emt 0:07:30]} Kf7 {[%emt 0:00:30]} 44. Ke3 {[%emt 0:01:30]} Nc1 {[%emt 0:03:30]} 45. Bb6 {[%emt 0:00:35]} Nxb3 {[%emt 0:06:30]} 46. Kd3 {[%emt 0:00:41]} Nc1+ {[%emt 0:00:30]} 47. Kd2 {[%emt 0:00:35]} Na2 {[%emt 0:00:30]} 48. Bc5 {[%emt 0:00:15]} Kg6 {[%emt 0:00:00]} 49. Bf8 {[%emt 0:04:22]} f4 {[%emt 0:01:00]} 50. Ke2 {[%emt 0:01:36]} Kf5 {[%emt 0:10:30]} 51. Kf3 {[%emt 0:00:20]} Nc1 {[%emt 0:00:30]} 52. Bxh6 {[%emt 0:02:03]} Nd3 {[%emt 0:00:00]} 53. Bg7 {[%emt 0:03:54]} Nxb4 {[%emt 0:01:00]} 54. h4 {[%emt 0:00:06]} Nd5 {[%emt 0:01:30]} 55. h5 {[%emt 0:01:38]} b4 {[%emt 0:00:00]} 56. Bb2 {[%emt 0:00:00]} Kg5 {[%emt 0:00:00]} 57. h6 {[%emt 0:08:36]} Kxh6 {[%emt 0:00:30]} 58. Kg4 {[%emt 0:00:10]} Kg6 {[%emt 0:01:30]} 59. Be5 {[%emt 0:00:05]} Kf7 {[%emt 0:00:30]} 60. Kf3 {[%emt 0:00:30]} Ke6 {[%emt 0:00:00]} 61. Ke4 {[%emt 0:00:00]} Kd7 {[%emt 0:06:00]} 62. Kd4 {[%emt 0:00:16]} f3 {[%emt 0:00:30]} 63. Bg3 {[%emt 0:00:38]} b3 {[%emt 0:00:30]} 64. Kd3 {[%emt 0:00:03]} Nf4+ {[%emt 0:02:30]} 65. Kd2 {[%emt 0:00:42]} b2 {[%emt 0:00:30]} 66. Kc2 {[%emt 0:00:05]} Nd3 {[%emt 0:00:00]} 67. Kb1 {[%emt 0:01:28]} Ke6 {[%emt 0:00:00]} 0-1

[Event "10th Cesme Open-A 2024"]
[Site "Cesme"]
[Date "2024.06.25"]
[Round "4"]
[White "Demirbas, Emre"]
[Black "Domalchuk-Jonasson, Aleksandr"]
[Result "0-1"]
[ECO "A09"]
[WhiteElo "2012"]
[BlackElo "2380"]
[Annotator "RC"]
[PlyCount "120"]
[EventDate "2024.06.23"]
[EventType "swiss"]
[EventCountry "TUR"]
[SourceTitle "playchess.com"]
[Source "ChessBase"]
[SourceQuality "1"]
[TimeControl "5400+30"]

1. Nf3 {[%emt 0:03:00]} d5 {[%emt 0:05:00]} 2. c4 {[%emt 0:00:00]} d4 {[%emt 0:00:30]} 3. e3 {[%emt 0:02:00]} Nc6 {[%emt 0:00:30]} 4. a3 {[%emt 0:03:30]} a5 {[%emt 0:00:30]} 5. exd4 {[%emt 0:00:30]} Nxd4 {[%emt 0:00:30]} 6. Nxd4 {[%emt 0:00:30]} Qxd4 {[%emt 0:00:30]} 7. Nc3 {[%emt 0:00:00]} c6 {[%emt 0:00:00]} 8. d3 {[%emt 0:00:00]} Nh6 {[%emt 0:00:00]} 9. Be3 {[%emt 0:01:30]} Qf6 {[%emt 0:00:30]} 10. Qd2 {[%emt 0:05:30]} Ng4 {[%emt 0:01:30]} 11. Ne4 {[%emt 0:00:30]} Qg6 {[%emt 0:02:30]} 12. Be2 {[%emt 0:14:30]} Nxe3 {[%emt 0:05:30]} 13. Qxe3 {[%emt 0:05:30]} Qh6 {[%emt 0:06:30]} 14. Qd4 {[%emt 0:07:30]} f5 {[%emt 0:01:30]} 15. Nc3 {[%emt 0:01:30]} Qf6 {[%emt 0:08:30]} 16. Qxf6 {[%emt 0:01:30]} gxf6 {[%emt 0:00:30]} 17. Bh5+ {[%emt 0:01:30]} Kd8 {[%emt 0:00:30]} 18. d4 {[%emt 0:00:00]} e5 {[%emt 0:04:30]} 19. O-O-O {[%emt 0:05:00]} Kc7 {[%emt 0:00:30]} 20. Rhe1 {[%emt 0:01:30]} Bg7 {[%emt 0:09:30]} 21. dxe5 {[%emt 0:01:30]} fxe5 {[%emt 0:00:30]} 22. Na4 {[%emt 0:06:30]} b6 {[%emt 0:05:30]} 23. c5 {[%emt 0:03:30]} bxc5 {[%emt 0:00:30]} 24. Nxc5 {[%emt 0:00:00]} Rb8 {[%emt 0:00:30]} 25. Bf7 {[%emt 0:02:00]} Bf6 {[%emt 0:08:30]} 26. Bc4 {[%emt 0:10:30]} Rb6 {[%emt 0:13:30]} 27. Na4 {[%emt 0:00:30]} Rb7 {[%emt 0:01:30]} 28. Nc5 {[%emt 0:00:30]} Ra7 {[%emt 0:00:30]} 29. Kc2 {[%emt 0:02:30]} a4 {[%emt 0:01:30]} 30. b3 {[%emt 0:04:31]} axb3+ {[%emt 0:00:30]} 31. Kxb3 {[%emt 0:00:01]} Ra5 {[%emt 0:00:30]} 32. Ne6+ {[%emt 0:02:53]} Kb6 {[%emt 0:01:30]} 33. Ka2 {[%emt 0:02:29]} Be7 {[%emt 0:06:23]} 34. Rb1+ {[%emt 0:02:41]} Ka7 {[%emt 0:00:05]} 35. Re3 {[%emt 0:03:16]} Re8 {[%emt 0:12:37]} 36. Rh3 {[%emt 0:06:13]} Ra4 {[%emt 0:01:50]} 37. Rxh7 {[%emt 0:01:36]} Rxc4 {[%emt 0:01:12]} 38. Nc7 {[%emt 0:00:30]} Rd8 {[%emt 0:00:00]} 39. Rxe7 {[%emt 0:00:25]} Rd7 {[%emt 0:00:00]} 40. Rxe5 {[%emt 0:00:51]} Rxc7 {[%emt 0:00:29]} 41. Ra5+ {[%emt 0:00:30]} Ba6 {[%emt 0:00:30]} 42. Rxf5 {[%emt 0:00:00]} Rd7 {[%emt 0:00:00]} 43. Rb4 {[%emt 0:00:50]} Rc2+ {[%emt 0:01:33]} 44. Kb3 {[%emt 0:01:44]} Rcd2 {[%emt 0:00:48]} 45. Ka4 {[%emt 0:00:53]} R2d3 {[%emt 0:02:08]} 46. Rf3 {[%emt 0:00:28]} Bb5+ {[%emt 0:01:12]} 47. Ka5 {[%emt 0:00:11]} R3d5 {[%emt 0:00:03]} 48. Rbf4 {[%emt 0:01:17]} Be2+ {[%emt 0:00:30]} 49. Kb4 {[%emt 0:00:00]} Rb7+ {[%emt 0:00:25]} 50. Kc3 {[%emt 0:00:00]} Bxf3 {[%emt 0:00:50]} 51. Rxf3 {[%emt 0:00:00]} Ra5 {[%emt 0:00:23]} 52. Kc2 {[%emt 0:00:16]} Rh5 {[%emt 0:00:29]} 53. h3 {[%emt 0:00:30]} Rhh7 {[%emt 0:00:03]} 54. Rc3 {[%emt 0:00:16]} Rbf7 {[%emt 0:00:32]} 55. f3 {[%emt 0:00:41]} Rfg7 {[%emt 0:00:11]} 56. g4 {[%emt 0:00:03]} Rxh3 {[%emt 0:00:30]} 57. Kd2 {[%emt 0:00:30]} Rf7 {[%emt 0:00:00]} 58. Ke2 {[%emt 0:00:00]} Rg3 {[%emt 0:00:26]} 59. Re3 {[%emt 0:00:44]} Kb6 {[%emt 0:00:37]} 60. Kf2 {[%emt 0:00:05]} Rxg4 {[%emt 0:00:17]} 0-1

[Event "10th Cesme Open-A 2024"]
[Site "Cesme"]
[Date "2024.06.25"]
[Round "4"]
[White "Ebrahimi Rashti, Asal"]
[Black "Cilek, Bora"]
[Result "0-1"]
[ECO "B38"]
[WhiteElo "2001"]
[BlackElo "2242"]
[Annotator "RC"]
[PlyCount "86"]
[EventDate "2024.06.23"]
[EventType "swiss"]
[EventCountry "TUR"]
[SourceTitle "playchess.com"]
[Source "ChessBase"]
[SourceQuality "1"]
[TimeControl "5400+30"]

1. e4 {[%emt 0:01:00]} c5 {[%emt 0:08:00]} 2. Nf3 {[%emt 0:00:00]} Nc6 {[%emt 0:00:00]} 3. d4 {[%emt 0:00:00]} cxd4 {[%emt 0:00:00]} 4. Nxd4 {[%emt 0:00:30]} g6 {[%emt 0:00:30]} 5. c4 {[%emt 0:00:00]} Bg7 {[%emt 0:00:00]} 6. Be3 {[%emt 0:01:00]} Nf6 {[%emt 0:00:00]} 7. Nc3 {[%emt 0:00:00]} O-O {[%emt 0:00:30]} 8. Be2 {[%emt 0:00:00]} d6 {[%emt 0:00:00]} 9. O-O {[%emt 0:01:30]} Bd7 {[%emt 0:01:00]} 10. Nc2 {[%emt 0:00:30]} Qa5 {[%emt 0:01:30]} 11. Rc1 {[%emt 0:05:30]} Rfc8 {[%emt 0:00:30]} 12. Bd2 {[%emt 0:17:30]} a6 {[%emt 0:06:30]} 13. Ne3 {[%emt 0:06:30]} Qd8 {[%emt 0:07:30]} 14. b3 {[%emt 0:03:30]} Nd4 {[%emt 0:05:30]} 15. Bd3 {[%emt 0:01:30]} b5 {[%emt 0:00:30]} 16. Ncd5 {[%emt 0:01:30]} Nxd5 {[%emt 0:06:30]} 17. Nxd5 {[%emt 0:01:30]} Ne6 {[%emt 0:06:30]} 18. Qe1 {[%emt 0:06:30]} Nc5 {[%emt 0:12:30]} 19. Be2 {[%emt 0:01:30]} Ra7 {[%emt 0:12:30]} 20. Ba5 {[%emt 0:08:30]} Qe8 {[%emt 0:00:30]} 21. b4 {[%emt 0:13:30]} Ne6 {[%emt 0:04:30]} 22. cxb5 {[%emt 0:07:30]} Rxc1 {[%emt 0:02:30]} 23. Qxc1 {[%emt 0:00:30]} Nd4 {[%emt 0:00:30]} 24. Bd3 {[%emt 0:02:30]} Bxb5 {[%emt 0:00:30]} 25. Bxb5 {[%emt 0:00:30]} axb5 {[%emt 0:02:30]} 26. Qd2 {[%emt 0:00:30]} Qa8 {[%emt 0:05:42]} 27. Qd3 {[%emt 0:14:18]} e6 {[%emt 0:00:33]} 28. Ne3 {[%emt 0:01:21]} Qc6 {[%emt 0:00:24]} 29. h3 {[%emt 0:03:54]} Ra8 {[%emt 0:00:13]} 30. Qb1 {[%emt 0:01:37]} Rc8 {[%emt 0:00:32]} 31. Kh1 {[%emt 0:00:22]} h5 {[%emt 0:00:16]} 32. Rd1 {[%emt 0:00:38]} f5 {[%emt 0:00:51]} 33. exf5 {[%emt 0:00:48]} gxf5 {[%emt 0:00:04]} 34. Nf1 {[%emt 0:00:26]} Kf7 {[%emt 0:02:30]} 35. Ne3 {[%emt 0:00:32]} Bf6 {[%emt 0:01:07]} 36. Kh2 {[%emt 0:00:29]} h4 {[%emt 0:00:17]} 37. Rd3 {[%emt 0:00:29]} Be5+ {[%emt 0:01:20]} 38. Kh1 {[%emt 0:00:17]} Ke7 {[%emt 0:01:33]} 39. Qd1 {[%emt 0:00:17]} Qc1 {[%emt 0:00:26]} 40. Qxc1 {[%emt 0:00:38]} Rxc1+ {[%emt 0:00:31]} 41. Rd1 {[%emt 0:00:01]} Rc6 {[%emt 0:00:11]} 42. Kg1 {[%emt 0:01:12]} Nc2 {[%emt 0:00:45]} 43. Rc1 {[%emt 0:00:35]} Nxb4 {[%emt 0:00:00]} 0-1